fUSD/lending_fUSD_20240407
["ID","MTS","AMOUNT","RATE_DAILY","PERIOD"]
[321775721,1712509832029,-31.05162691,0.00020206,2]
[321775722,1712509832040,-1325.14524,0.00020206,2]
[321775723,1712509832052,-578.6453,0.00020206,2]
[321775724,1712509832076,-3068.08483309,0.00020206,2]
[321775725,1712509832085,-184.28691249,0.00020206,2]
[321775726,1712509832094,-966.59779272,0.00020206,2]
[321775727,1712509832103,-168.33,0.00020229,2]
[321775728,1712509832112,-3160.16719746,0.00020282,2]
[321775729,1712509832122,-415.94983123,0.00020282,2]
[321775730,1712509832131,-285.00775174,0.00020295,2]
[321775731,1712509832141,-199.0,0.00020295,2]
[321775732,1712509832150,-199.0,0.00020295,2]
[321775733,1712509832159,-91.72117698,0.00020295,2]
[321775734,1712509832170,-107.27882302,0.00020295,2]
[321775735,1712509832179,-199.0,0.00020295,2]
[321775736,1712509832188,-199.0,0.00020295,2]
[321775737,1712509832198,-199.0,0.00020295,2]
[321775738,1712509832207,-23.91119698,0.00020295,2]
[321775739,1712509832218,-175.08880302,0.00020295,2]
[321775740,1712509832228,-199.0,0.00020295,2]
[321775741,1712509832238,-423.46,0.00020295,3]
[321775742,1712509832247,-285.00775174,0.00020296,2]
[321775743,1712509832256,-199.0,0.00020296,2]
[321775744,1712509832265,-199.0,0.00020296,2]
[321775745,1712509832274,-500.0,0.00020302,2]
[321775747,1712509832284,-537.64314348,0.00020303,2]
[321775750,1712509832294,-288.1832685,0.00020303,2]
[321775753,1712509832305,-1125.41559954,0.00020303,2]
[321775756,1712509832314,-215.47501592,0.00020304,2]
[321775759,1712509832325,-157.15060433,0.00020304,2]
[321775763,1712509832334,-290.70600858,0.00020304,2]
[321775767,1712509832343,-155.0,0.00020304,2]
[321775782,1712509832522,-380.35301671,0.00020304,2]
[321775783,1712509832533,-62820.27800853,0.00020305,2]
[321775784,1712509832546,-709.93992774,0.00020305,2]
[321775785,1712509832596,-500.0,0.00020302,2]
[321775786,1712509832606,-500.0,0.00020302,2]
[321775787,1712509832616,-500.0,0.00020302,2]
[321775788,1712509832626,-375.10744736,0.00020305,2]
[321775789,1712509832639,-4853.96217298,0.00020305,2]
[321775790,1712509832652,-925.52503418,0.00020305,2]
[321775791,1712509832696,-500.0,0.00020302,2]
[321775792,1712509832705,-500.0,0.00020302,2]
[321775793,1712509832716,-20535.59380187,0.00020305,2]
[321775794,1712509832753,-500.0,0.00020302,2]
[321775795,1712509832764,-500.0,0.00020302,2]
[321775796,1712509832775,-162.26223792,0.00020305,2]
[321775797,1712509832788,-470.10612067,0.00020305,2]
[321775798,1712509832824,-500.0,0.00020302,2]
[321775799,1712509832834,-295.75575979,0.00020302,2]
[321775800,1712509832844,-581624.1659341,0.00020305,2]
[321775801,1712509832857,-1047.42676983,0.00020305,2]
[321775804,1712509837882,-4897.55,0.00020305,2]
[321775805,1712509837955,-5568.81533182,0.00020305,2]
[321775806,1712509837968,-988655.14860013,0.00020305,2]
[321775807,1712509837977,-191.26196638,0.00020305,2]
[321775808,1712509837987,-100000.0,0.00020306,2]
[321775809,1712509837996,-500.0,0.00020306,2]
[321775811,1712509838006,-109500.3450988,0.00020306,2]
[321775832,1712509839696,-314.42240085,0.00020306,2]
[321775833,1712509839787,-66569.08661168,0.00020306,2]
[321775835,1712509840111,-484.23808323,0.00020306,2]
[321775844,1712509842714,-2366.87135181,0.00020306,2]
[321775847,1712509843050,-3336.47025576,0.00020306,2]
[321775854,1712509845842,-705.29295304,0.00020306,2]
[321775855,1712509845925,-61723.27324483,0.00020306,2]
[321775856,1712509845934,-1551.13108755,0.00020343,2]
[321775857,1712509845944,-3160.16719746,0.00020359,2]
[321775858,1712509845953,-415.94983123,0.00020359,2]
[321775859,1712509845962,-380.35301671,0.00020404,2]
[321775860,1712509845972,-526.03769238,0.00020405,2]
[321775861,1712509845981,-3160.16719746,0.00020437,2]
[321775862,1712509845992,-415.94983123,0.00020437,2]
[321775863,1712509846001,-150.0,0.000205,2]
[321775864,1712509846010,-380.35301671,0.00020503,2]
[321775865,1712509846020,-3160.16719746,0.00020514,2]
[321775866,1712509846030,-415.94983123,0.00020514,2]
[321775867,1712509846041,-5223.08,0.00020523,5]
[321775868,1712509846050,-2630.22,0.00020523,5]
[321775869,1712509846059,-2609.89,0.00020523,5]
[321775870,1712509846069,-159.33566866,0.00020553,2]
[321775871,1712509846078,-367.22378141,0.00020553,2]
[321775872,1712509846087,-184.28691248,0.00020553,2]
[321775873,1712509846097,-3160.16719746,0.00020591,2]
[321775874,1712509846106,-415.94983123,0.00020591,2]
[321775875,1712509846115,-380.35301671,0.00020602,2]
[321775876,1712509846124,-3160.16719746,0.00020668,2]
[321775877,1712509846133,-415.94983123,0.00020668,2]
[321775878,1712509846142,-101228.14001341,0.0002068,5]
[321775879,1712509846176,-593.61192643,0.0002068,5]
[321775895,1712510056341,4847.3,0.00020466,5]
[321775897,1712510074770,5339.49,0.00020414,5]
[321775899,1712510082533,560.78,0.00020414,5]
[321775900,1712510088545,7596.56,0.00020414,5]
[321775904,1712510170251,1200.0,0.0003,28]
[321775909,1712510270304,-525.24029402,0.00018847,2]
[321775910,1712510270327,-500.0,0.00018847,2]
[321775911,1712510270347,-2173.81938731,0.00018847,2]
[321775912,1712510270367,-1611.0,0.00018848,2]
[321775913,1712510270387,-300.0,0.00018854,2]
[321775914,1712510270408,-150.0,0.00018854,2]
[321775915,1712510270428,-150.0,0.00018854,2]
[321775916,1712510270448,-150.0,0.00018854,2]
[321775917,1712510270469,-14439.94031867,0.00018855,2]
[321775918,1712510314660,1002.12,0.00017182,2]
[321775919,1712510379534,-269.15452375,0.00018853,2]
[321775920,1712510379555,-199.86061644,0.00018853,2]
[321775921,1712510379575,-261.60041953,0.00018854,2]
[321775922,1712510379597,-347.12808133,0.00018855,2]
[321775923,1712510379617,-1210.82205052,0.00018954,2]
[321775924,1712510379639,-150.0,0.00018955,2]
[321775925,1712510379661,-17561.43430843,0.00018956,2]
[321775926,1712510383425,-14786.88931627,0.00018956,2]
[321775927,1712510383446,-5213.11068373,0.00018998,2]
[321775928,1712510393963,-9100.0,0.00018998,2]
[321775929,1712510460240,-300.0,0.00018747,2]
[321775930,1712510460263,-800.0,0.00018888,2]
[321775931,1712510460283,-289.9,0.00018895,2]
[321775932,1712510460305,-9586.88931627,0.00018998,2]
[321775933,1712510460324,-533.58,0.00019071,2]
[321775934,1712510460344,-203.63,0.00019083,2]
[321775935,1712510460364,-222.6,0.00019104,2]
[321775936,1712510460384,-607.9,0.00019112,2]
[321775937,1712510460403,-213.99,0.00019113,2]
[321775938,1712510460424,-154.37,0.00019256,2]
[321775939,1712510460444,-2351.25,0.00019274,2]
[321775940,1712510460465,-154.37,0.00019315,2]
[321775941,1712510460486,-499.99,0.00019315,2]
[321775942,1712510460505,-154.37,0.00019374,2]
[321775943,1712510460527,-154.37,0.00019433,2]
[321775944,1712510460547,-1002.12,0.00019446,2]
[321775945,1712510460744,-154.37,0.00019492,2]
[321775946,1712510460767,-269.15452375,0.0001955,2]
[321775947,1712510460786,-154.37,0.00019551,2]
[321775948,1712510460808,-154.37,0.0001961,2]
[321775949,1712510460828,-154.37,0.00019669,2]
[321775950,1712510460850,-154.37,0.00019728,2]
[321775951,1712510460870,-154.37,0.00019787,2]
[321775952,1712510460893,-154.37,0.00019846,2]
[321775953,1712510460913,-154.37,0.00019905,2]
[321775954,1712510460934,-158.63,0.00019916,2]
[321775955,1712510460953,-158.63,0.00019927,2]
[321775956,1712510460973,-158.63,0.00019938,2]
[321775957,1712510460993,-158.63,0.00019949,2]
[321775958,1712510461012,-158.63,0.0001996,2]
[321775959,1712510461032,-154.37,0.00019964,2]
[321775960,1712510461053,-158.63,0.00019971,2]
[321775961,1712510461075,-158.63,0.00019982,2]
[321775962,1712510461095,-1.77615998,0.00019993,2]
[321775963,1712510466726,-150.0,0.00018997,2]
[321775964,1712510466749,-156.85384002,0.00019993,2]
[321775965,1712510466772,-158.63,0.00020004,2]
[321775966,1712510466794,-158.63,0.00020016,2]
[321775967,1712510466817,-154.37,0.00020023,2]
[321775968,1712510466838,-166.07,0.00020047,2]
[321775969,1712510466866,-154.37,0.00020082,2]
[321775970,1712510466895,-1000.0,0.00020105,2]
[321775971,1712510466936,-1130.74682629,0.00020105,2]
[321775972,1712510466964,-467.60502179,0.00020105,2]
[321775973,1712510466986,-154.37,0.00020141,2]
[321775974,1712510467016,-908.96496575,0.00020163,2]
[321775975,1712510467037,-1130.74682623,0.00020193,2]
[321775976,1712510467058,-467.60502176,0.00020193,2]
[321775977,1712510467086,-154.37,0.000202,2]
[321775978,1712510467120,-500.0,0.00020204,2]
[321775979,1712510467142,-500.0,0.00020204,2]
[321775980,1712510467165,-556.05579579,0.00020204,2]
[321775981,1712510467196,-5997.476,0.00020205,2]
[321775982,1712510467218,-5933.13570237,0.00020205,2]
[321775983,1712510468754,-20000.0,0.00020205,2]
[321775984,1712510470564,-20000.0,0.00020205,2]
[321775985,1712510472308,-20000.0,0.00020205,2]
[321775986,1712510474127,-20000.0,0.00020205,2]
[321775987,1712510476893,-20000.0,0.00020205,2]
[321775988,1712510499984,-586.9014,0.00018755,2]
[321775989,1712510500008,-1000.0,0.00020105,2]
[321775990,1712510500029,-2663.0986,0.00020205,2]
[321775991,1712510594221,18555.2,0.00019974,5]
[321775992,1712510606504,7824.49914854,0.00019974,5]
[321775993,1712510606527,50000.0,0.00019974,5]
[321775994,1712510606553,20000.0,0.00019974,5]
[321775995,1712510606577,41970.74085146,0.00019974,5]
[321775996,1712510621575,8029.25914854,0.00019974,5]
[321775997,1712510797879,946.01,0.00017632,2]
[321775998,1712510799391,-222.6,0.00019662,2]
[321775999,1712510799412,-742.04528935,0.00019668,2]
[321776000,1712510834097,-1620.73660858,0.0001955,2]
[321776001,1712510840688,1750.0,0.00019,3]
[321776002,1712510848650,-500.0,0.00019548,2]
[321776003,1712510848670,-1222.24259155,0.00019548,2]
[321776004,1712510848691,-3374.18597777,0.00019549,2]
[321776005,1712510848711,-1793.50198639,0.0001955,2]
[321776009,1712510979453,-2000.0,0.00019296,2]
[321776010,1712510980405,-2000.0,0.00019296,2]
[321776011,1712510980910,-311.7785482,0.00019296,2]
[321776012,1712510980933,-1688.2214518,0.00019296,2]
[321776013,1712510981612,-616.73995261,0.00019296,2]
[321776014,1712510981633,-518.13979023,0.00019296,2]
[321776015,1712510981653,-620.31159771,0.00019296,2]
[321776016,1712510981674,-155.0,0.00019296,2]
[321776017,1712510981696,-89.80865945,0.00019297,2]
[321776018,1712510982207,-314.84038806,0.00019297,2]
[321776019,1712510982227,-155.0,0.00019297,2]
[321776020,1712510982247,-1125.41559954,0.00019297,2]
[321776021,1712510982268,-404.7440124,0.00019297,2]
[321776022,1712510983991,-81.29448246,0.00019297,2]
[321776023,1712510984012,-312.61768174,0.00019297,2]
[321776024,1712510984033,-1606.0878358,0.00019297,2]
[321776025,1712510984816,-2000.0,0.00019297,2]
[321776026,1712510985676,-2000.0,0.00019297,2]
[321776027,1712510987962,-2000.0,0.00019297,2]
[321776028,1712510992469,-155.0,0.00019296,2]
[321776029,1712510992490,-522.63989634,0.00019296,2]
[321776030,1712510992511,-241.36010366,0.00019297,2]
[321776040,1712511031903,-9195.69493455,0.00019159,2]
[321776041,1712511031913,-426.0554907,0.00019159,2]
[321776042,1712511031923,-314.25,0.0001916,2]
[321776043,1712511031933,-215.47501592,0.00019293,2]
[321776044,1712511031944,-166.91997935,0.00019294,2]
[321776045,1712511031954,-155.0,0.00019294,2]
[321776046,1712511031964,-1222.24259155,0.00019294,2]
[321776047,1712511031974,-263.09163061,0.00019294,2]
[321776048,1712511031984,-362.27924693,0.00019295,2]
[321776049,1712511031994,-155.0,0.00019295,2]
[321776050,1712511032003,-4716.5472582,0.00019295,2]
[321776051,1712511032013,-2742.86309064,0.00019296,2]
[321776052,1712511032022,-165.71746394,0.00019296,2]
[321776053,1712511032032,-172.89508842,0.00019296,2]
[321776054,1712511032041,-150.0,0.00019296,2]
[321776055,1712511032050,-150.0,0.00019296,2]
[321776056,1712511032060,-80643.91346365,0.00019297,2]
[321776065,1712511032360,-1700.0,0.00019297,2]
[321776066,1712511032372,-347.96815075,0.00019297,2]
[321776072,1712511037990,-3751.56582909,0.00019297,2]
[321776073,1712511038002,-13286.78,0.00019297,2]
[321776074,1712511038013,-301.20011067,0.00019297,2]
[321776075,1712511038081,-638.44931056,0.00019297,2]
[321776076,1712511038092,-981.97731131,0.00019297,2]
[321776077,1712511038180,-6938.54546146,0.00019297,2]
[321776079,1712511038191,-699.17938341,0.00019297,2]
[321776082,1712511038204,-48949.9694113,0.00019297,2]
[321776084,1712511038214,-2116.14018314,0.00019298,2]
[321776086,1712511038223,-42627.35876943,0.00019298,2]
[321776088,1712511038232,-360.0,0.00019301,2]
[321776090,1712511038241,-251.251816,0.00019452,2]
[321776092,1712511038251,-531.79720941,0.00019542,2]
[321776094,1712511038260,-2075.97625932,0.00019546,2]
[321776096,1712511038269,-499.99,0.00019546,2]
[321776098,1712511038278,-839.67768077,0.00019549,2]
[321776100,1712511038287,-20485.76140503,0.0001955,2]
[321776102,1712511038296,-154.37,0.00019551,2]
[321776104,1712511038305,-825.11471065,0.00019668,2]
[321776106,1712511038315,-341.18,0.00019886,2]
[321776108,1712511038324,-946.01,0.00019896,2]
[321776110,1712511038332,-171.14085146,0.00019974,5]
[321776112,1712511038342,-13980.45,0.00019974,5]
[321776114,1712511038351,-7506.95,0.00019974,5]
[321776116,1712511038360,-250.0,0.0002,2]
[321776118,1712511038369,-223.39629663,0.0002,2]
[321776120,1712511038378,-155.0,0.0002,2]
[321776122,1712511038387,-155.0,0.00020094,2]
[321776124,1712511038396,-1009.05535847,0.00020104,2]
[321776126,1712511038406,-100000.0,0.00020105,2]
[321776128,1712511038415,-2043.28,0.00020105,2]
[321776130,1712511038425,-2064.2515,0.00020105,2]
[321776132,1712511038434,-164.41145324,0.00020105,2]
[321776134,1712511038443,-2125.63431531,0.00020105,2]
[321776136,1712511038454,-2125.63431525,0.00020193,2]
[321776138,1712511038464,-341.18,0.00020195,2]
[321776140,1712511038473,-136403.76569763,0.00020205,2]
[321776142,1712511038482,-500.0,0.00020205,2]
[321776144,1712511038492,-164.41145322,0.00020228,2]
[321776146,1712511038501,-37486.0,0.00020243,2]
[321776148,1712511038510,-251.251816,0.00020274,2]
[321776150,1712511038519,-2125.63431525,0.00020281,2]
[321776152,1712511038528,-164.41145322,0.00020351,2]
[321776154,1712511038537,-2125.63431525,0.0002037,2]
[321776156,1712511038547,-2125.63431525,0.00020458,2]
[321776158,1712511038556,-800.0,0.00020466,2]
[321776160,1712511038565,-3956.9126,0.00020466,2]
[321776162,1712511038574,-164.41145322,0.00020474,2]
[321776164,1712511038584,-150.0,0.00020485,2]
[321776166,1712511038593,-408.56,0.000205,2]
[321776168,1712511038603,-661.9,0.000205,2]
[321776170,1712511038612,-150.0,0.000205,2]
[321776172,1712511038621,-200.0,0.000205,2]
[321776174,1712511038631,-200.0,0.000205,2]
[321776177,1712511038640,-200.0,0.000205,2]
[321776179,1712511038650,-200.0,0.000205,2]
[321776181,1712511038659,-163.0,0.000205,2]
[321776183,1712511038668,-2125.63431525,0.00020546,2]
[321776185,1712511038678,-164.41145322,0.00020597,2]
[321776186,1712511038687,-155.0,0.0002061,2]
[321776189,1712511038697,-2125.63431525,0.00020634,2]
[321776190,1712511038707,-408.50213455,0.00020662,2]
[321776192,1712511038717,-341.18,0.00020662,2]
[321776194,1712511038726,-229.44917,0.00020668,2]
[321776196,1712511038735,-8383.7398453,0.00020672,2]
[321776198,1712511038745,-92400.0328447,0.00020672,2]
[321776200,1712511038754,-3735.2272428,0.00020672,2]
[321776202,1712511038763,-2000.0,0.0002068,2]
[321776204,1712511038773,-200.0,0.0002068,2]
[321776206,1712511038785,-6199.5381527,0.00020686,2]
[321776208,1712511038795,-7500.0,0.00020712,2]
[321776210,1712511038804,-155.0,0.00020714,2]
[321776213,1712511038814,-1302.13006648,0.0002072,2]
[321776214,1712511038823,-164.41145322,0.0002072,2]
[321776216,1712511038833,-205.34985452,0.0002072,2]
[321776218,1712511038842,-154.42024626,0.0002072,2]
[321776221,1712511038852,-285.75356118,0.0002072,2]
[321776223,1712511038862,-170.97010711,0.00020721,2]
[321776225,1712511038875,-155.95974898,0.00020721,2]
[321776227,1712511038885,-1268.22951171,0.00020721,3]
[321776228,1712511038894,-1530.07504079,0.00020721,2]
[321776231,1712511038903,-198.98160708,0.00020721,3]
[321776233,1712511038913,-8394.9775444,0.00020721,2]
[321776235,1712511038923,-5851.59749622,0.00020721,2]
[321776237,1712511038932,-10000.0,0.00020721,2]
[321776239,1712511038941,-278.8316,0.00020721,2]
[321776241,1712511038953,-2125.63431525,0.00020723,2]
[321776243,1712511038963,-1530.07504077,0.00020759,2]
[321776245,1712511038972,-1530.07504077,0.00020797,2]
[321776246,1712511038981,-154.42024624,0.0002081,2]
[321776248,1712511038990,-408.50213455,0.0002081,2]
[321776250,1712511038999,-341.18,0.0002081,2]
[321776252,1712511039009,-341.18,0.0002081,2]
[321776254,1712511039017,-341.18,0.0002081,2]
[321776255,1712511039026,-341.18,0.0002081,2]
[321776256,1712511039035,-341.18,0.0002081,2]
[321776257,1712511039044,-341.18,0.0002081,2]
[321776258,1712511039053,-341.18,0.0002081,2]
[321776259,1712511039063,-2125.63431525,0.00020811,2]
[321776260,1712511039072,-408.50213455,0.00020811,2]
[321776261,1712511039081,-65685.19426452,0.00020812,2]
[321776262,1712511039091,-246.88854608,0.00020818,2]
[321776263,1712511039100,-304.58040453,0.00020818,2]
[321776264,1712511039109,-2634.04674469,0.00020818,2]
[321776265,1712511039119,-350.76102204,0.00020818,2]
[321776266,1712511039129,-1393.84873977,0.00020818,2]
[321776267,1712511039138,-10528.3408894,0.00020818,2]
[321776268,1712511039147,-155.0,0.00020818,2]
[321776269,1712511039157,-279.68472986,0.00020818,2]
[321776270,1712511039166,-160.44483625,0.00020818,2]
[321776271,1712511039176,-201.02811127,0.00020818,2]
[321776272,1712511039185,-164.3276537,0.00020818,2]
[321776273,1712511039194,-644.30260577,0.00020818,2]
[321776274,1712511039204,-155.0,0.00020818,2]
[321776275,1712511039213,-1053.83898605,0.00020818,2]
[321776276,1712511039222,-407.22475255,0.00020818,2]
[321776277,1712511039231,-188.00024433,0.00020818,2]
[321776278,1712511039240,-240.08283614,0.00020818,2]
[321776279,1712511039249,-158.40536406,0.00020818,2]
[321776280,1712511039259,-1238.94442072,0.00020818,2]
[321776281,1712511039269,-180.68788228,0.00020818,2]
[321776282,1712511039279,-295.8857038,0.00020818,2]
[321776283,1712511039288,-2729.30649513,0.00020818,2]
[321776284,1712511039297,-319.99805191,0.00020818,2]
[321776285,1712511039306,-155.39293265,0.00020818,2]
[321776286,1712511039315,-155.39470595,0.00020818,2]
[321776287,1712511039324,-330.98988329,0.00020818,2]
[321776288,1712511039334,-159.36321711,0.00020818,2]
[321776289,1712511039343,-2570.9050671,0.00020818,2]
[321776290,1712511039353,-500.0,0.00020818,2]
[321776291,1712511039362,-200.61274342,0.00020818,2]
[321776292,1712511039371,-189.8909477,0.00020818,2]
[321776293,1712511039380,-177.53843708,0.00020818,2]
[321776294,1712511039389,-284.24425826,0.00020818,2]
[321776295,1712511039398,-212.59855795,0.00020818,2]
[321776296,1712511039407,-155.62348997,0.00020818,2]
[321776297,1712511039416,-169.64026488,0.00020818,2]
[321776298,1712511039425,-156.0026956,0.00020818,3]
[321776299,1712511039434,-155.0,0.00020818,2]
[321776300,1712511039443,-303.65133067,0.00020818,2]
[321776301,1712511039455,-400.0,0.00020818,2]
[321776302,1712511039465,-211.84851613,0.00020818,2]
[321776303,1712511039474,-155.0,0.00020818,2]
[321776304,1712511039483,-873.90846262,0.00020818,2]
[321776305,1712511039493,-176.75298616,0.00020818,2]
[321776306,1712511039502,-244.97936461,0.00020818,2]
[321776307,1712511039512,-304.57157206,0.00020818,2]
[321776308,1712511039521,-157.31336717,0.00020818,2]
[321776309,1712511039530,-163.70329151,0.00020818,2]
[321776310,1712511039541,-155.20654588,0.00020818,2]
[321776311,1712511039550,-174.27613434,0.00020818,2]
[321776312,1712511039560,-221.59943082,0.00020818,2]
[321776313,1712511039569,-184.99361137,0.00020818,2]
[321776314,1712511039579,-203.60014587,0.00020818,2]
[321776315,1712511039589,-240.02740078,0.00020818,2]
[321776316,1712511039599,-643.95022803,0.00020818,2]
[321776317,1712511039608,-2621.28814961,0.00020818,2]
[321776318,1712511039618,-254.65583011,0.00020818,2]
[321776319,1712511039628,-157.09483559,0.00020818,2]
[321776320,1712511039638,-155.0,0.00020818,2]
[321776321,1712511039648,-155.31508233,0.00020818,2]
[321776322,1712511039658,-244.98397099,0.00020818,2]
[321776323,1712511039669,-601.30438827,0.00020818,2]
[321776324,1712511039680,-256.02612092,0.00020818,2]
[321776325,1712511039690,-261.16504767,0.00020818,2]
[321776326,1712511039702,-542.62978743,0.00020818,2]
[321776327,1712511039712,-206.23207189,0.00020818,2]
[321776328,1712511039723,-881.36334579,0.00020818,2]
[321776330,1712511039733,-570.89706792,0.00020818,2]
[321776331,1712511039743,-228.69841838,0.00020818,2]
[321776332,1712511039754,-155.65339939,0.00020818,2]
[321776333,1712511039764,-171.90686635,0.00020818,2]
[321776334,1712511039775,-264.23455154,0.00020818,2]
[321776336,1712511039785,-266.51965949,0.00020818,2]
[321776338,1712511039796,-274.86977578,0.00020818,2]
[321776340,1712511039806,-205.36093141,0.00020818,2]
[321776341,1712511039817,-155.046986,0.00020818,2]
[321776342,1712511039828,-210.37739858,0.00020818,2]
[321776343,1712511039839,-273.73705132,0.00020818,2]
[321776344,1712511039849,-295.12321122,0.00020818,2]
[321776345,1712511039860,-155.0,0.00020818,2]
[321776346,1712511039872,-208.03176831,0.00020818,2]
[321776347,1712511039882,-232.02232687,0.00020818,2]
[321776348,1712511039893,-283.62368822,0.00020818,2]
[321776349,1712511039903,-331.35254529,0.00020818,2]
[321776350,1712511039913,-654.6711174,0.00020818,2]
[321776351,1712511039923,-482.3398624,0.00020818,2]
[321776352,1712511039933,-626.87241806,0.00020818,2]
[321776353,1712511039943,-156.95147165,0.00020818,2]
[321776354,1712511039961,-312.26608832,0.00020818,2]
[321776355,1712511039970,-337.40410444,0.00020818,2]
[321776356,1712511039979,-788.71072943,0.00020818,2]
[321776357,1712511039988,-661.24842281,0.00020818,2]
[321776358,1712511039997,-155.0,0.00020818,2]
[321776359,1712511040006,-537.88379237,0.00020818,2]
[321776360,1712511040015,-707.20622612,0.00020818,2]
[321776361,1712511040024,-1062.53945412,0.00020818,2]
[321776362,1712511040033,-550.51311595,0.00020818,2]
[321776363,1712511040042,-198.22248409,0.00020818,2]
[321776364,1712511040051,-205.79634065,0.00020818,2]
[321776365,1712511040060,-573987.76186845,0.0002082,2]
[321776366,1712511040070,-446.88290934,0.0002082,2]
[321776367,1712511040080,-1672645.88138713,0.0002082,2]
[321776368,1712511040089,-500.0,0.00020821,2]
[321776369,1712511040098,-500.0,0.00020821,2]
[321776370,1712511040108,-514.52799423,0.00020821,2]
[321776371,1712511040117,-506.81114562,0.00020821,2]
[321776372,1712511040127,-504.25842649,0.00020821,2]
[321776373,1712511040137,-505.08752853,0.00020821,2]
[321776374,1712511040146,-500.0,0.00020821,2]
[321776375,1712511040155,-500.0,0.00020821,2]
[321776376,1712511040165,-500.0,0.00020821,2]
[321776377,1712511040174,-448.44006579,0.00020821,2]
[321776378,1712511040183,-500.0,0.00020821,2]
[321776379,1712511040192,-499.36146209,0.00020821,2]
[321776380,1712511040204,-581.79200893,0.00020821,2]
[321776381,1712511040213,-226.03199187,0.00020821,2]
[321776382,1712511040223,-500.0,0.00020821,2]
[321776383,1712511040232,-504.59084382,0.00020821,2]
[321776384,1712511040241,-500.0,0.00020821,2]
[321776385,1712511040251,-501.48722222,0.00020821,2]
[321776386,1712511040260,-500.0,0.00020821,2]
[321776387,1712511040270,-500.0,0.00020821,2]
[321776388,1712511040280,-500.0,0.00020821,2]
[321776389,1712511040289,-503.0454369,0.00020821,2]
[321776390,1712511040299,-500.0,0.00020821,2]
[321776391,1712511040309,-500.0,0.00020821,2]
[321776392,1712511040319,-500.0,0.00020821,2]
[321776393,1712511040328,-320.47490055,0.00020821,2]
[321776394,1712511040337,-500.0,0.00020821,2]
[321776395,1712511040347,-500.0,0.00020821,2]
[321776396,1712511040357,-550.69740149,0.00020821,2]
[321776397,1712511040366,-563.25385225,0.00020821,2]
[321776398,1712511040376,-500.0,0.00020821,2]
[321776399,1712511040386,-500.0,0.00020821,2]
[321776400,1712511040396,-500.0,0.00020821,2]
[321776401,1712511040406,-500.0,0.00020821,2]
[321776402,1712511040415,-500.0,0.00020821,2]
[321776403,1712511040608,-500.0,0.00020821,2]
[321776404,1712511040619,-500.0,0.00020821,2]
[321776405,1712511040629,-500.0,0.00020821,2]
[321776406,1712511040640,-642.58098873,0.00020821,2]
[321776407,1712511040655,-500.0,0.00020821,2]
[321776408,1712511040674,-500.0,0.00020821,2]
[321776409,1712511040691,-500.0,0.00020821,2]
[321776410,1712511040703,-444.56396844,0.00020821,2]
[321776411,1712511040714,-500.0,0.00020821,2]
[321776412,1712511040723,-500.0,0.00020821,2]
[321776413,1712511040733,-506.349014,0.00020821,2]
[321776414,1712511040742,-500.0,0.00020821,2]
[321776415,1712511040752,-500.0,0.00020821,2]
[321776416,1712511040762,-528.26739776,0.00020821,2]
[321776417,1712511040772,-303.93967996,0.00020821,2]
[321776418,1712511040781,-500.0,0.00020821,2]
[321776419,1712511040791,-567.48357939,0.00020821,2]
[321776420,1712511040800,-500.0,0.00020821,2]
[321776421,1712511040809,-500.0,0.00020821,2]
[321776422,1712511040819,-500.0,0.00020821,2]
[321776423,1712511040828,-629.57551058,0.00020821,2]
[321776424,1712511040837,-512.84793551,0.00020821,2]
[321776425,1712511040846,-548.26723099,0.00020821,2]
[321776426,1712511040856,-541.92101722,0.00020821,2]
[321776427,1712511040865,-505.34518979,0.00020821,2]
[321776428,1712511040877,-513.24581157,0.00020821,2]
[321776429,1712511040886,-500.0,0.00020821,2]
[321776430,1712511040895,-500.0,0.00020821,2]
[321776431,1712511040905,-500.0,0.00020821,2]